bitfinex-derivatives/quotes_ETHF0:USTF0_20250107
["timestamp","ask_amount","ask_price","bid_price","bid_amount"]
[1736224658722,6.73022646,3680.9,3680.7,40.8]
[1736224658927,6.73022646,3680.9,3680.7,41.07164]
[1736224659325,6.73022646,3680.9,3680.8,0.27163]
[1736224660034,6.73022646,3680.9,3680.7,41.07164]
[1736224661028,6.73022646,3680.9,3680.8,0.27163]
[1736224667834,1.38696078,3680.9,3680.8,0.27163]
[1736224674535,0.27161,3681.1,3680.8,0.27163]
[1736224674536,3.2078,3681.2,3681.1,0.27161]
[1736224675345,3.2078,3681.2,3681.1,0.68681]
[1736224675346,4.17956078,3681.2,3681.1,0.68681]
[1736224676635,0.97176078,3681.2,3681.1,0.68681]
[1736224685856,10.05908827,3681.5,3681.4,0.27159]
[1736224686051,9.60698827,3681.5,3681.4,0.27159]
[1736224686554,9.60698827,3681.5,3681.4,0.69889]
[1736224687357,3.2078,3681.5,3681.4,0.69889]
[1736224687851,0.97176078,3681.6,3681.5,0.27158]
[1736224689658,8.26164905,3681.8,3681.7,0.27157]
[1736224689859,1.86246078,3681.8,3681.7,0.27157]
[1736224691847,5.33460963,3681.9,3681.8,0.27156]
[1736224692051,4.78460963,3681.9,3681.8,0.73286]
[1736224692257,4.78460963,3681.9,3681.8,41.53286]
[1736224693747,2.13340078,3682.1,3681.8,41.2613]
[1736224693950,2.13340078,3682.1,3682.0,1.24331078]
[1736224694160,2.13340078,3682.1,3682.0,2.91331078]
[1736224694659,2.13340078,3682.1,3682.0,43.71331078]
[1736224694854,2.13340078,3682.2,3682.1,0.27154]
[1736224695051,2.13340078,3682.2,3682.1,1.24330078]
[1736224696158,2.13340078,3682.3,3682.2,0.27153]
[1736224697156,5.34120078,3682.4,3682.1,0.97176078]
[1736224697357,5.34120078,3682.4,3682.3,1.24328078]
[1736224697654,6.31296156,3682.4,3682.1,0.27154]
[1736224698450,6.31296156,3682.4,3682.1,1.24330078]
[1736224699762,5.34120078,3682.4,3682.3,0.27152]
[1736224700863,5.34120078,3682.4,3682.3,1.24328078]
[1736224701560,5.34120078,3682.4,3682.3,0.27152]
[1736224701858,5.34120078,3682.4,3682.3,1.24328078]
[1736224702261,3.2078,3682.4,3682.3,1.24328078]
[1736224704968,3.2078,3682.4,3681.9,0.4167]
[1736224705157,3.2078,3682.4,3682.2,0.27153]
[1736224708162,3.2078,3682.4,3682.3,0.97176078]
[1736224708766,3.668,3682.4,3682.3,1.24328078]
[1736224710162,0.4602,3682.4,3682.3,1.24328078]
[1736224716769,0.4602,3682.4,3682.3,0.27152]
[1736224721980,2.59360078,3682.4,3682.3,0.27152]
[1736224725786,2.59360078,3682.4,3682.3,1.24328078]
[1736224725988,3.66030117,3682.4,3682.3,1.24328078]
[1736224726993,3.20010117,3682.4,3682.3,1.24328078]
[1736224727487,3.20010117,3682.4,3682.3,42.04328078]
[1736224728491,3.20010117,3682.5,3682.3,41.77176078]
[1736224728689,3.20010117,3682.5,3682.4,0.72402]
[1736224730889,8.89186234,3682.7,3682.4,0.4525]
[1736224731085,8.89186234,3682.7,3682.6,0.2715]
[1736224731390,4.62506078,3682.7,3682.6,0.2715]
[1736224732396,9.94012749,3682.7,3682.6,0.2715]
[1736224733790,4.62506078,3682.7,3682.6,0.2715]
[1736224734487,3.2078,3682.7,3682.6,0.2715]
[1736224737793,3.6524,3682.7,3682.6,0.2715]
[1736224739883,3.6524,3682.7,3682.6,1.24326078]
[1736224742290,8.99003652,3682.7,3682.6,1.24326078]
[1736224745588,8.99003652,3682.7,3682.4,1.42426078]
[1736224745794,0.9152,3682.6,3682.5,0.27151]
[1736224746396,6.25283652,3682.6,3682.5,0.27151]
[1736224748000,0.27151,3682.5,3682.3,42.04328078]
[1736224748803,5.60914652,3682.5,3682.3,42.04328078]
[1736224749003,5.33763652,3682.5,3682.3,42.04328078]
[1736224749203,5.60914652,3682.5,3682.3,42.04328078]
[1736224749904,5.33763652,3682.5,3682.3,42.04328078]
[1736224750105,5.33763652,3682.4,3682.3,42.04328078]
[1736224753594,5.33763652,3682.5,3682.3,42.04328078]
[1736224754497,5.33763652,3682.5,3682.3,40.8]
[1736224754702,5.33763652,3682.4,3682.3,42.04328078]
[1736224761102,5.33763652,3682.4,3682.3,41.07152]
[1736224762506,0.27151,3682.5,3682.3,41.07152]
[1736224764709,0.27151,3682.5,3682.3,40.8]
[1736224764905,0.27151,3682.5,3682.4,0.27152]
[1736224765301,0.27151,3682.5,3682.1,0.97176078]
[1736224765507,0.27151,3682.5,3682.3,0.27152]
[1736224768804,1.88696078,3682.6,3682.2,40.8]
[1736224769010,2.15847078,3682.6,3682.4,0.27151]
[1736224770314,0.27151,3682.5,3682.4,0.27151]
[1736224770916,1.88696078,3682.6,3682.4,0.27151]
[1736224771110,2.15847078,3682.6,3682.4,0.27151]
[1736224771716,0.27151,3682.5,3682.4,0.27151]
[1736224774820,3.47931,3682.5,3682.4,0.27151]
[1736224776413,3.2078,3682.5,3682.4,0.27151]
[1736224777418,3.47931,3682.5,3682.4,0.27151]
[1736224779919,0.27151,3682.5,3682.4,0.27151]
[1736224780214,3.47931,3682.5,3682.4,0.27151]
[1736224781623,3.47931,3682.5,3682.2,40.8]
[1736224781829,3.47931,3682.5,3682.3,0.27152]
[1736224782026,3.47931,3682.5,3682.2,40.8]
[1736224782326,3.47931,3682.5,3682.4,0.27152]
[1736224783029,3.47931,3682.5,3682.2,40.8]
[1736224783229,3.47931,3682.5,3682.4,0.27152]
[1736224784929,0.27151,3682.5,3682.4,0.27152]
[1736224785125,3.47931,3682.5,3682.4,0.27152]
[1736224785426,3.47931,3682.5,3682.1,0.97176078]
[1736224785728,3.47931,3682.5,3682.3,0.27152]
[1736224789132,0.97176078,3682.4,3682.3,0.27152]
[1736224795738,1.24328078,3682.4,3682.2,41.07153]
[1736224796039,0.4195,3682.3,3682.2,41.07153]
[1736224797639,0.4195,3682.3,3682.2,40.8]
[1736224797842,0.4195,3682.3,3682.2,41.07153]
[1736224801337,0.4195,3682.3,3682.0,0.435]
[1736224801644,0.4195,3682.3,3681.9,5.24083025]
[1736224801645,0.97176078,3682.2,3681.9,4.26906947]
[1736224801840,1.24331078,3682.0,3681.9,4.26906947]
[1736224802240,0.27156,3681.9,3681.7,4.26906947]
[1736224802441,0.97176078,3681.8,3681.7,4.54063947]
[1736224802742,1.24332078,3681.8,3681.7,4.26906947]
[1736224803143,6.58274834,3681.8,3681.6,0.27157]
[1736224804045,6.31118834,3681.8,3681.6,0.27157]
[1736224804246,6.58274834,3681.8,3681.5,45.77124947]
[1736224804447,6.31118834,3681.8,3681.6,0.27157]
[1736224804842,5.33942756,3681.7,3681.6,0.27157]
[1736224805249,5.33942756,3681.7,3681.6,1.24333078]
[1736224805745,5.33942756,3681.7,3681.5,0.4306]
[1736224805946,0.97176078,3681.6,3681.3,4.26906947]
[1736224806144,0.97176078,3681.4,3681.3,4.54066947]
[1736224806449,0.97176078,3681.4,3681.3,4.26906947]
[1736224807251,6.31118834,3681.4,3681.3,0.2716]
[1736224808353,0.97176078,3681.4,3681.3,0.2716]
[1736224810048,0.97176078,3681.4,3681.1,1.40986078]
[1736224810248,0.68698,3681.5,3681.2,0.2716]
[1736224810447,0.97176078,3681.3,3681.2,0.2716]
[1736224810641,0.97176078,3681.3,3681.1,1.68147078]
[1736224810951,0.97176078,3681.3,3681.1,1.40986078]
[1736224811143,4.26519609,3681.4,3681.3,0.2716]
[1736224811950,1.38716078,3681.5,3681.3,0.2716]
[1736224811951,6.72658834,3681.5,3681.3,0.2716]
[1736224812545,6.72658834,3681.5,3681.4,0.27159]
[1736224813247,1.38716078,3681.5,3681.4,0.27159]
[1736224814753,5.64996115,3681.5,3681.4,0.27159]
[1736224816350,5.64996115,3681.5,3681.3,1.24335078]
[1736224816942,5.64996115,3681.5,3681.4,0.27159]
[1736224818250,5.64996115,3681.5,3681.3,0.97176078]
[1736224818551,1.38716078,3681.5,3681.3,1.24336078]
[1736224820949,1.38716078,3681.5,3681.3,0.97176078]
[1736224821148,3.1957655,3681.4,3681.3,1.24336078]
[1736224829159,1.38716078,3681.5,3681.3,0.97176078]
[1736224829360,1.38716078,3681.5,3681.4,0.27159]
[1736224832554,5.64996115,3681.5,3681.4,0.27159]
[1736224837352,5.64996115,3681.5,3681.1,1.40986078]
[1736224837850,5.64996115,3681.5,3681.4,0.27159]
[1736224839958,1.38716078,3681.5,3681.1,1.40986078]
[1736224840159,1.65875078,3681.5,3681.4,0.27159]
[1736224840752,1.38716078,3681.5,3681.4,0.27159]
[1736224841157,1.65874078,3681.5,3681.4,0.27159]
[1736224842766,1.65874078,3681.5,3681.3,0.27159]
[1736224843265,1.65874078,3681.5,3681.1,1.40986078]
[1736224843459,1.65874078,3681.5,3681.3,0.27159]
[1736224843659,6.99816834,3681.5,3681.3,0.27159]
[1736224844466,6.99816834,3681.5,3681.2,0.2716]
[1736224844668,6.99816834,3681.5,3681.3,0.27159]
[1736224845965,1.65874078,3681.5,3681.3,0.27159]
[1736224846863,4.86654078,3681.5,3681.3,0.27159]
[1736224848466,0.27159,3681.4,3681.3,0.27159]
[1736224852060,0.2716,3681.3,3681.1,1.40986078]
[1736224852263,0.726,3681.2,3681.1,1.40986078]
[1736224852467,0.726,3681.2,3681.1,0.4381]
[1736224853370,0.726,3681.2,3681.1,0.70971]
[1736224855565,0.726,3681.2,3681.1,0.4381]
[1736224858073,0.726,3681.2,3681.1,1.40986078]
[1736224859173,0.726,3681.2,3681.1,1.68147078]
[1736224859374,0.4544,3681.2,3681.1,1.68147078]
[1736224860574,0.726,3681.2,3681.1,1.68147078]
[1736224861570,0.726,3681.2,3681.1,1.40986078]
[1736224865874,0.726,3681.2,3681.1,0.4381]
[1736224866574,0.4544,3681.2,3680.9,1.24338078]
[1736224866775,0.27162,3681.0,3680.9,2.08338078]
[1736224867174,0.27162,3681.0,3680.9,0.84]
[1736224867378,0.70472,3681.0,3680.9,0.84]
[1736224867880,6.03737181,3681.0,3680.9,0.84]
[1736224873078,0.27164,3680.7,3680.6,4.26906947]
[1736224873781,1.12374,3680.7,3680.6,4.26906947]
[1736224875186,1.12374,3680.7,3680.5,0.4421]
[1736224875187,6.45639181,3680.7,3680.5,0.4421]
[1736224875584,6.45639181,3680.7,3680.5,0.71376]
[1736224879390,6.18475181,3680.7,3680.5,0.4421]
[1736224879591,4.53227554,3680.6,3680.5,0.4421]
[1736224883397,4.53227554,3680.6,3680.5,1.2821]
[1736224883800,4.26062554,3680.6,3680.5,1.2821]
[1736224887304,4.26062554,3680.6,3680.5,1.55376]
[1736224889808,4.26062554,3680.6,3680.5,1.2821]
[1736224891412,4.53227554,3680.6,3680.5,1.2821]
[1736224893711,4.53227554,3680.6,3680.5,0.84]
[1736224894212,4.97977554,3680.6,3680.5,0.84]
[1736224894616,5.95153632,3680.6,3680.5,0.84]
[1736224895415,7.02356259,3680.6,3680.5,0.84]
[1736224897309,1.69091078,3680.6,3680.5,0.84]
[1736224898014,4.89871078,3680.6,3680.5,0.84]
[1736224899521,4.62706078,3680.6,3680.0,1.24345078]
[1736224899723,0.27169,3680.1,3680.0,1.40176078]
[1736224899913,0.97176078,3680.3,3680.0,1.40176078]
[1736224900218,1.15608,3680.2,3680.0,1.67345078]
[1736224900617,0.27169,3680.1,3680.0,1.40176078]
[1736224901614,5.83656279,3680.2,3680.0,1.67345078]
[1736224901920,0.27169,3680.1,3680.0,1.67345078]
[1736224902119,1.24345078,3680.1,3680.0,0.43]
[1736224902518,1.24345078,3680.1,3679.9,0.2717]
[1736224902718,0.27169,3680.0,3679.8,1.68797078]
[1736224903922,0.27169,3680.0,3679.8,2.08797078]
[1736224904721,3.46339711,3680.0,3679.8,2.08797078]
[1736224904924,3.19170711,3680.0,3679.8,0.8445]
[1736224905221,1.24346078,3679.9,3679.8,0.8445]
[1736224906124,4.43516789,3679.9,3679.8,0.8445]
[1736224907120,4.43516789,3679.9,3679.2,4.70876947]
[1736224907121,6.17722867,3679.9,3679.2,4.26906947]
[1736224907323,4.45131078,3679.3,3679.2,4.26906947]
[1736224908329,4.87241078,3679.3,3679.2,0.12056948]
[1736224908526,12.28970256,3679.3,3678.8,8.54125368]
[1736224908720,5.42309156,3678.9,3678.8,8.54125368]
[1736224909024,4.45133078,3678.9,3678.8,8.54125368]
[1736224909221,4.17956078,3678.9,3678.1,0.4568]
[1736224909427,1.24359078,3678.2,3678.1,0.4568]
[1736224909724,0.97176078,3678.2,3678.1,0.4568]
[1736224910825,1.24359078,3678.2,3678.1,0.4568]
[1736224911120,0.97176078,3678.2,3678.1,0.4568]
[1736224912018,1.24359078,3678.2,3678.1,0.4568]
[1736224912426,0.97176078,3678.2,3678.1,0.4568]
[1736224913023,0.73567886,3678.2,3678.1,1.42863]
[1736224913319,0.73567886,3678.2,3678.1,42.22863]
[1736224914026,0.73567886,3678.2,3678.1,43.20039078]
[1736224914227,3.2078,3678.7,3678.6,0.2718]
[1736224914628,3.2078,3678.7,3678.5,0.2718]
[1736224914828,3.2078,3678.7,3678.6,0.4498]
[1736224915722,3.47959,3678.7,3678.3,0.27182]
[1736224916530,3.47959,3678.7,3678.4,0.4423]
[1736224918826,3.2078,3678.7,3678.4,0.71411]
[1736224919034,3.2078,3678.7,3678.5,0.2718]
[1736224922929,3.2078,3678.7,3678.4,0.71411]
[1736224923435,3.2078,3678.7,3678.5,0.2718]
[1736224923827,3.2078,3678.7,3678.4,0.4423]
[1736224924029,3.6677,3678.7,3678.4,0.71411]
[1736224924532,3.6677,3678.7,3678.4,0.27181]
[1736224924733,3.6677,3678.7,3678.2,3.2078]
[1736224924933,3.6677,3678.7,3678.4,0.27181]
[1736224926138,3.6677,3678.7,3678.3,0.4207]
[1736224926333,3.6677,3678.7,3678.5,0.2718]
[1736224927139,3.6677,3678.7,3678.3,0.4207]
[1736224927336,3.6677,3678.7,3678.3,2.6707]
[1736224927537,3.6677,3678.7,3678.5,0.2718]
[1736224927837,3.2078,3678.7,3678.6,0.2718]
[1736224929432,3.2078,3678.7,3678.6,2.43340281]
[1736224934236,3.2078,3678.7,3678.6,0.2718]
[1736224934437,3.47959,3678.7,3678.3,0.4207]
[1736224934636,0.27182,3678.4,3678.1,0.27183]
[1736224934938,3.2078,3678.3,3677.9,40.8]
[1736224935234,3.2078,3678.3,3678.0,0.27184]
[1736224935438,3.2078,3678.3,3678.1,0.27183]
[1736224936041,3.2078,3678.3,3678.2,0.27183]
[1736224941049,3.2078,3678.3,3678.0,0.4306]
[1736224941345,3.2078,3678.3,3678.2,0.27183]
[1736224944452,3.2078,3678.3,3677.9,40.8]
[1736224944750,3.2078,3678.3,3678.1,0.27183]
[1736224945145,6.38938371,3678.3,3678.1,0.27183]
[1736224947649,3.2078,3678.3,3678.2,0.27183]
[1736224952759,7.45262373,3678.3,3678.2,0.27183]
[1736224953452,4.24482373,3678.3,3678.2,4.92343281]
[1736224954156,4.24482373,3678.4,3678.2,4.65160281]
[1736224954350,4.24482373,3678.4,3678.3,1.63292]
[1736224954549,4.24482373,3678.4,3678.3,4.77292]
[1736224955560,3.19069753,3678.5,3678.4,0.27181]
[1736224955745,3.19069753,3678.5,3678.4,2.96181]
[1736224957755,3.19069753,3678.6,3678.5,0.2718]
[1736224957954,3.19069753,3678.6,3678.5,6.31340281]
[1736224958959,3.19069753,3678.6,3678.5,11.31340281]
[1736224959177,2.49929753,3678.6,3678.5,11.31340281]
[1736224959563,1.99929753,3678.6,3678.5,11.31340281]
[1736224959866,1.49929753,3678.6,3678.5,11.31340281]
[1736224960354,4.03177357,3679.2,3679.1,0.27176]
[1736224960557,4.03177357,3679.2,3679.1,2.43336281]
[1736224961061,4.03177357,3679.2,3679.1,43.23336281]
[1736224961955,0.447,3679.5,3679.1,42.96160281]
[1736224962155,0.447,3679.5,3679.4,0.27174]
[1736224963955,3.2078,3679.6,3679.5,0.27173]
[1736224972975,3.2078,3679.6,3679.1,42.96160281]
[1736224972976,5.77057849,3679.9,3679.8,0.27171]
[1736224973174,5.31997849,3679.9,3679.8,0.27171]
[1736224974175,3.6573,3680.0,3679.7,2.16160281]
[1736224974363,3.6573,3680.0,3679.9,0.2717]
[1736224980082,0.4495,3680.0,3679.9,0.2717]
[1736224980682,0.4495,3680.0,3679.5,1.3242]
[1736224980884,0.4495,3680.0,3679.8,0.27171]
[1736224982087,0.4495,3680.0,3679.9,0.2717]
[1736224988989,0.4495,3680.0,3679.9,1.24650505]
[1736224990594,0.29936966,3680.1,3680.0,0.27169]
[1736224990787,3.6614,3680.3,3680.0,0.4324]
[1736224990994,3.6614,3680.3,3680.2,1.24648505]
[1736224991587,3.6614,3680.3,3680.2,42.04648505]
[1736224992187,3.2078,3680.3,3680.2,42.04648505]
[1736224992589,3.6404,3680.3,3680.2,42.04648505]
[1736224993885,3.6404,3680.3,3680.2,40.8]
[1736224994094,3.6404,3680.3,3680.0,1.40720505]
[1736224994095,0.27169,3680.1,3679.7,0.27172]
[1736224994295,0.4304,3680.0,3679.7,3.73480505]
[1736224994596,1.1478,3680.0,3679.7,4.00651505]
[1736224994991,0.8761,3680.0,3679.7,4.00651505]
[1736224995192,1.1478,3680.0,3679.7,4.00651505]
[1736224995895,0.8761,3680.0,3679.8,0.27171]
[1736224996083,0.8761,3680.0,3679.8,2.93171]
[1736224996290,0.8761,3680.0,3679.8,2.66]
[1736224996487,0.8761,3680.0,3679.8,2.93171]
[1736224996889,0.8761,3680.0,3679.9,0.2717]
[1736224997091,0.8761,3680.0,3679.9,2.9117]
[1736224998794,5.11751298,3680.0,3679.9,2.9117]
[1736225000090,0.8761,3680.0,3679.9,2.9117]
[1736225002399,1.14779,3680.0,3679.9,2.64]
[1736225002792,4.71106028,3680.0,3679.9,2.64]
[1736225003195,4.43937028,3680.0,3679.9,2.9117]
[1736225003997,9.75934877,3680.0,3679.9,2.9117]
[1736225005299,9.75934877,3680.0,3679.9,2.64]
[1736225005493,10.03103877,3680.0,3679.9,2.64]
[1736225005695,9.75934877,3680.0,3679.9,2.9117]
[1736225007403,10.03103877,3680.0,3679.9,2.64]
[1736225008005,4.71106028,3680.0,3679.9,2.64]
[1736225009106,1.14779,3680.0,3679.9,2.64]
[1736225010005,4.71106028,3680.0,3679.9,2.64]
[1736225032623,4.28066028,3680.0,3679.9,2.64]
[1736225040131,10.67984855,3680.0,3679.9,2.64]
[1736225045021,16.39025125,3680.0,3679.9,2.64]
[1736225046230,16.11856125,3680.0,3678.9,8.54125368]
[1736225046428,0.27174,3679.4,3679.3,6.68650414]
[1736225046627,0.27174,3679.4,3679.3,4.27650414]
[1736225046935,1.59194,3679.4,3679.3,4.27650414]
[1736225048032,0.27177,3679.0,3678.9,40.8]
[1736225048630,0.72697,3679.0,3678.9,40.8]
[1736225049833,4.29024028,3679.0,3678.9,40.8]
[1736225051034,9.61338219,3679.0,3678.9,40.8]
[1736225051237,0.27179,3678.7,3678.5,1.3542]
[1736225051427,0.27179,3678.7,3678.6,0.97491955]
[1736225051627,0.27178,3678.8,3678.6,4.02491955]
[1736225052239,4.52937422,3678.8,3678.6,4.02491955]
[1736225055741,3.19269084,3678.7,3678.6,4.02491955]
[1736225056338,3.19269084,3678.7,3678.6,4.29671955]
[1736225056638,3.19269084,3678.7,3678.6,4.02491955]
[1736225057438,3.19269084,3678.7,3678.6,4.29671955]
[1736225058645,3.19269084,3678.7,3678.6,4.02491955]
[1736225059144,3.19269084,3678.7,3678.6,3.05]
[1736225059340,3.19269084,3678.7,3678.6,4.02491955]
[1736225060244,4.25759422,3678.8,3678.6,4.29671955]
[1736225061446,4.25759422,3678.8,3678.7,0.27179]
[1736225061742,5.16089422,3678.9,3678.7,2.99179]
[1736225061942,5.16089422,3678.9,3678.8,0.97491955]
[1736225062143,5.16089422,3678.9,3678.8,3.79491955]
[1736225063139,0.9033,3678.9,3678.8,3.79491955]
[1736225065739,0.9033,3678.9,3678.8,4.06669955]
[1736225067647,0.9033,3678.9,3678.8,44.86669955]
[1736225067846,4.71279422,3679.0,3678.9,0.27177]
[1736225068053,4.71279422,3679.0,3678.9,3.92177]
[1736225068357,4.71279422,3679.0,3678.9,4.34957]
[1736225068857,4.71279422,3679.0,3678.9,3.92177]
[1736225069058,5.95948377,3679.0,3678.9,3.65]
[1736225069253,6.82048377,3679.0,3678.9,3.65]
[1736225069851,2.56288955,3679.0,3678.9,3.65]
[1736225072068,6.12816153,3679.0,3678.9,3.65]
[1736225075367,5.15324198,3679.0,3678.9,3.65]
[1736225075562,6.12816153,3679.0,3678.9,3.65]
[1736225076466,11.02027316,3679.0,3678.9,3.65]
[1736225077263,10.04535361,3679.0,3678.9,3.65]
[1736225078263,9.61005361,3679.0,3678.9,3.65]
[1736225078664,9.61005361,3679.0,3678.9,4.098]
[1736225079963,0.72697,3679.0,3678.9,4.098]
[1736225081862,4.29389506,3679.0,3678.9,4.098]
[1736225082161,7.50169506,3679.0,3678.9,4.098]
[1736225085368,7.04649506,3679.0,3678.9,4.098]
[1736225086270,12.36430669,3679.0,3678.9,4.098]
[1736225087568,7.04649506,3679.0,3678.9,4.098]
[1736225088173,8.02141461,3679.0,3678.9,3.65]
[1736225089278,13.33922624,3679.0,3678.9,3.65]
[1736225090272,8.02141461,3679.0,3678.9,3.65]
[1736225090667,7.04649506,3679.0,3678.9,3.65]
[1736225091369,3.47957,3679.0,3678.9,3.65]
[1736225092573,7.04649506,3679.0,3678.9,3.65]
[1736225094074,8.02141461,3679.0,3678.9,3.65]
[1736225095176,7.04649506,3679.0,3678.9,3.65]
[1736225096577,3.83869506,3679.0,3678.9,3.65]
[1736225096874,7.04649506,3679.0,3678.9,3.65]
[1736225097376,8.02141461,3679.0,3678.9,3.65]
[1736225097875,13.74424265,3679.0,3678.9,3.65]
[1736225102176,20.13546949,3679.0,3678.9,3.65]
[1736225102979,19.16054994,3679.0,3678.9,3.65]
[1736225106483,0.27182,3678.3,3678.2,4.27650414]
[1736225106686,0.27182,3678.3,3678.2,7.64650414]
[1736225107387,0.27182,3678.3,3678.2,3.37]
[1736225108287,0.27182,3678.3,3678.2,3.8256]
[1736225108880,3.83874506,3678.3,3678.2,3.37]
[1736225110086,9.16283522,3678.3,3678.2,3.37]
[1736225115790,10.13775477,3678.3,3678.2,3.37]
[1736225116490,4.81366461,3678.3,3678.2,3.37]
[1736225118789,1.24673955,3678.3,3678.2,3.37]
[1736225119698,4.81366461,3678.3,3678.2,3.37]
[1736225122300,10.13372407,3678.3,3678.2,3.37]
[1736225128507,9.15880452,3678.3,3678.2,3.37]
[1736225129203,9.15880452,3678.3,3678.2,3.8262]
[1736225129809,8.88698452,3678.3,3678.2,4.09803]
[1736225130609,3.56692506,3678.3,3678.2,4.09803]
[1736225132016,8.52785946,3678.4,3678.3,0.27182]
[1736225132017,3.2078,3678.4,3678.3,0.27182]
[1736225132316,3.2078,3678.4,3678.3,5.75413955]
[1736225132816,7.4633202,3678.4,3678.3,5.75413955]
[1736225133210,8.43823975,3678.4,3678.3,4.5074]
[1736225133615,9.13064975,3678.4,3678.3,4.5074]
[1736225134309,8.44259115,3678.4,3678.3,4.5074]
[1736225135109,8.17078115,3678.4,3678.3,4.5074]
[1736225135310,7.1958616,3678.4,3678.3,4.5074]
[1736225136008,7.4676716,3678.4,3678.3,4.5074]
[1736225136520,7.1958616,3678.4,3678.3,4.5074]
[1736225136706,7.4676716,3678.4,3678.3,3.61]
[1736225136905,13.67963106,3678.4,3678.3,3.61]
[1736225138519,20.45840325,3678.4,3678.3,3.61]
[1736225139216,21.4333228,3678.4,3678.3,3.61]
[1736225139423,0.27183,3678.2,3678.1,0.97491955]
[1736225139621,0.27183,3678.2,3678.1,1.99491955]
[1736225140212,0.27183,3678.2,3678.1,1.02]
[1736225140520,0.27183,3678.2,3678.1,1.99491955]
[1736225140719,9.1599664,3678.2,3678.1,1.99491955]
[1736225142610,9.1599664,3678.2,3678.1,2.44681955]
[1736225144618,9.1599664,3678.2,3678.1,1.4719]
[1736225151250,9.1599664,3678.2,3678.1,1.02]
[1736225151251,3.8392916,3678.2,3678.1,1.02]
[1736225151737,4.2684916,3678.2,3678.1,1.02]
[1736225152725,0.70103,3678.2,3678.1,1.02]
[1736225153827,4.2684916,3678.2,3678.1,1.02]
[1736225157220,3.8392916,3678.2,3678.1,1.02]
[1736225157527,3.5674616,3678.2,3678.1,2.26674955]
[1736225157720,3.5674616,3678.2,3678.1,43.06674955]
[1736225158630,3.5674616,3678.2,3678.1,42.79491955]
[1736225158826,4.2551916,3678.2,3678.1,42.79491955]
[1736225159326,0.68773,3678.2,3678.1,42.79491955]
[1736225160528,6.01321405,3678.2,3678.1,42.79491955]
[1736225160919,6.01321405,3678.2,3678.1,1.99491955]
[1736225161821,4.25803367,3678.2,3678.1,1.99491955]
[1736225162027,4.25803367,3678.2,3678.1,1.02]
[1736225163330,0.68773,3678.2,3678.1,1.02]
[1736225165031,4.25803367,3678.2,3678.1,1.02]
[1736225173935,4.25803367,3678.2,3677.2,6.39531405]
[1736225173936,0.67959,3678.1,3677.2,6.39531405]
[1736225174137,0.67959,3678.1,3677.4,7.53650414]
[1736225174138,1.24679955,3677.5,3677.4,7.53650414]
[1736225175032,1.24679955,3677.5,3677.4,3.26]
[1736225176541,0.27189,3677.4,3677.1,0.97491955]
[1736225176739,0.2719,3677.2,3677.1,4.52491955]
[1736225177633,0.2719,3677.2,3677.1,4.97651955]
[1736225179441,4.5257037,3677.2,3677.1,4.97651955]
[1736225182245,0.2719,3677.2,3677.1,4.97651955]
[1736225183047,0.2719,3677.2,3677.1,4.0016]
[1736225183253,8.86052325,3677.3,3676.6,4.60431955]
[1736225183449,8.86052325,3677.3,3676.7,0.4377]
[1736225183450,0.27192,3676.9,3676.7,0.4377]
[1736225183750,0.2719,3677.2,3676.8,0.97491955]
[1736225183945,8.86052325,3677.3,3677.0,0.97491955]
[1736225184248,1.24682955,3677.1,3676.9,40.8]
[1736225184446,0.2719,3677.2,3677.0,0.97491955]
[1736225184646,0.2719,3677.2,3677.0,1.40171955]
[1736225184846,0.27191,3677.2,3677.0,1.40171955]
[1736225185449,3.18773267,3677.1,3677.0,1.40171955]
[1736225186257,0.27191,3677.2,3677.0,1.40171955]
[1736225188959,3.18667358,3677.1,3677.0,1.40171955]
[1736225189354,3.45858358,3677.1,3677.0,1.40171955]
[1736225189846,3.18667358,3677.1,3677.0,1.40171955]
[1736225190655,3.18667358,3677.1,3677.0,1.67363955]
[1736225191853,3.18667358,3677.2,3677.0,1.67363955]
[1736225193358,3.18667358,3677.2,3677.0,5.83363955]
[1736225194061,1.24682955,3677.1,3677.0,4.16]
[1736225197859,1.70492955,3677.1,3677.0,4.16]
[1736225199763,1.43301955,3677.1,3677.0,4.16]
[1736225200863,1.70492955,3677.1,3677.0,4.16]
[1736225204360,4.89160313,3677.1,3677.0,4.16]
[1736225207066,5.95873325,3677.1,3677.0,4.16]
[1736225211570,4.7119037,3677.1,3677.0,5.13491955]
[1736225211859,4.2538037,3677.1,3677.0,5.40683955]
[1736225212460,4.2538037,3677.1,3677.0,46.20683955]
[1736225212661,0.2719,3677.2,3677.0,45.93491955]
[1736225212662,5.58949006,3677.2,3677.0,45.93491955]
[1736225212861,5.58949006,3677.2,3677.0,46.20682955]
[1736225213064,5.31759006,3677.2,3677.1,0.27191]
[1736225213263,5.58949006,3677.2,3677.1,2.88191]
[1736225213867,0.6959,3677.3,3677.1,2.88191]
[1736225214364,0.424,3677.3,3677.2,1.24681955]
[1736225215266,0.424,3677.3,3677.2,1.66961955]
[1736225216170,1.67080955,3677.3,3677.2,0.4228]
[1736225216560,5.21853288,3677.3,3677.2,0.4228]
[1736225216760,4.94664288,3677.3,3677.2,0.6947]
[1736225217769,10.26423294,3677.3,3677.2,0.6947]
[1736225219373,10.26423294,3677.3,3677.2,0.4228]
[1736225220468,4.94664288,3677.3,3677.2,0.4228]
[1736225220773,5.21853288,3677.3,3677.2,0.4228]
[1736225221874,1.67080955,3677.3,3677.2,0.4228]
[1736225222875,5.21853288,3677.3,3677.2,0.4228]
[1736225224670,4.94664288,3677.3,3677.2,0.4228]
[1736225224877,5.21853288,3677.3,3677.2,0.4228]
[1736225225874,4.94664288,3677.3,3677.2,0.4228]
[1736225226075,5.21853288,3677.3,3677.2,0.4228]
[1736225226972,5.21853288,3677.3,3677.2,4.3028]
[1736225227173,4.94664288,3677.3,3677.2,4.5747]
[1736225227673,3.97172333,3677.3,3677.2,4.5747]
[1736225228280,3.97172333,3677.3,3677.2,5.54961955]
[1736225228482,3.54772333,3677.3,3677.2,5.54961955]
[1736225228677,3.54772333,3677.3,3677.2,5.98391955]